bitfinex/quotes_BTCUSD_20210402
["timestamp","ask_amount","ask_price","bid_price","bid_amount"]
[1617330507887,0.162,59557.0,59552.0,0.00748547]
[1617330508087,0.302212,59555.0,59552.0,0.00748547]
[1617330508691,1.35,59554.0,59542.0,0.47771211]
[1617330508887,0.295,59553.0,59542.0,0.47271211]
[1617330509089,0.47,59542.0,59541.0,5.10084878]
[1617330509488,0.2562,59555.0,59542.0,1.22]
[1617330509690,0.2562,59555.0,59543.0,0.48522664]
[1617330509888,0.05,59555.0,59542.0,1.22]
[1617330510093,0.383257,59559.0,59543.0,0.13]
[1617330510289,0.002,59558.0,59542.0,0.4879369]
[1617330510493,0.370657,59559.0,59543.0,0.46]
[1617330510692,0.252212,59549.0,59543.0,0.46]
[1617330511293,0.252212,59549.0,59542.0,0.4879369]
[1617330512894,0.252212,59549.0,59542.0,0.14960456]
[1617330513327,0.252212,59549.0,59542.0,0.14460456]
[1617330513528,0.252212,59549.0,59548.0,1.98239089]
[1617330513732,0.0002,59550.0,59548.0,2.93601389]
[1617330513929,0.0002,59550.0,59549.0,2.22195598]
[1617330514126,0.0002,59550.0,59549.0,2.52195598]
[1617330514529,0.0082,59550.0,59549.0,2.52195598]
[1617330514929,0.0082,59550.0,59549.0,2.22195598]
[1617330515130,0.0082,59550.0,59549.0,0.87195598]
[1617330515332,0.0032,59550.0,59549.0,1.93195598]
[1617330515748,0.005,59558.0,59549.0,1.93195598]
[1617330515946,0.005,59558.0,59549.0,1.54563298]
[1617330516347,0.0024,59562.0,59549.0,1.54563298]
[1617330516949,0.00098962,59556.0,59549.0,1.54563298]
[1617330517349,0.00098962,59556.0,59549.0,0.61171298]
[1617330517549,0.005,59555.0,59549.0,0.61171298]
[1617330517750,0.005,59555.0,59549.0,0.12608]
[1617330518151,0.00098962,59556.0,59549.0,0.12608]
[1617330518570,0.00098962,59556.0,59549.0,0.12108]
[1617330518772,0.00598964,59555.0,59549.0,0.12108]
[1617330519972,0.00098964,59555.0,59549.0,0.11608]
[1617330520174,0.00098964,59555.0,59550.0,0.386323]
[1617330520376,0.03604376,59556.0,59551.0,0.0173674]
[1617330520666,0.005,59555.0,59551.0,0.0173674]
[1617330520916,0.005,59555.0,59552.0,0.386323]
[1617330521108,0.005,59555.0,59552.0,0.381323]
[1617330521307,0.005,59555.0,59552.0,0.47483579]
[1617330521510,0.005,59555.0,59551.0,0.5]
[1617330521711,0.254559,59562.0,59550.0,0.09351279]
[1617330521911,0.254559,59562.0,59552.0,0.8]
[1617330522114,0.002,59562.0,59552.0,0.8173674]
[1617330522310,0.005,59561.0,59552.0,0.5173674]
[1617330522510,0.005,59561.0,59552.0,0.60588019]
[1617330522710,0.03604087,59564.0,59552.0,0.60588019]
[1617330522913,0.005,59563.0,59552.0,0.60588019]
[1617330523112,0.007,59563.0,59553.0,0.035]
[1617330523315,0.037,59563.0,59553.0,0.035]
[1617330523520,0.047,59562.0,59553.0,0.12851279]
[1617330523716,0.049,59562.0,59553.0,0.12851279]
[1617330523919,0.002,59562.0,59553.0,0.12851279]
[1617330524120,0.047,59561.0,59553.0,0.12851279]
[1617330524518,0.077,59561.0,59553.0,0.035]
[1617330524721,0.59546906,59555.0,59553.0,0.035]
[1617330524919,0.60056906,59555.0,59554.0,0.385171]
[1617330525119,0.59556906,59555.0,59554.0,0.420171]
[1617330525320,0.64256906,59555.0,59554.0,0.420171]
[1617330525720,0.64256906,59555.0,59554.0,0.035]
[1617330525922,0.67256906,59555.0,59554.0,0.035]
[1617330526150,0.67769806,59555.0,59554.0,0.035]
[1617330526352,0.67256906,59555.0,59554.0,0.035]
[1617330526552,0.64256906,59555.0,59554.0,0.085]
[1617330526950,0.64256906,59555.0,59554.0,0.970171]
[1617330528556,0.62756906,59555.0,59554.0,1.500171]
[1617330528774,0.62756906,59555.0,59554.0,0.970171]
[1617330529576,0.58056906,59555.0,59554.0,0.970171]
[1617330530175,0.62756906,59555.0,59554.0,0.970171]
[1617330530377,0.62756906,59555.0,59554.0,1.010171]
[1617330530578,0.62756906,59555.0,59554.0,0.900171]
[1617330531180,0.62756906,59555.0,59554.0,1.350171]
[1617330531403,0.62756906,59555.0,59554.0,0.900171]
[1617330531602,0.62576906,59555.0,59554.0,0.900171]
[1617330535624,0.62576906,59555.0,59554.0,0.510171]
[1617330536229,3.93822906,59555.0,59554.0,0.035]
[1617330536430,3.45335806,59555.0,59554.0,0.035]
[1617330536860,1.49635806,59555.0,59554.0,0.035]
[1617330537060,0.98635806,59555.0,59554.0,0.035]
[1617330537462,1.04135806,59555.0,59554.0,0.035]
[1617330538264,1.26635806,59555.0,59554.0,0.55704698]
[1617330538465,0.85876906,59555.0,59554.0,0.55704698]
[1617330538663,0.59776906,59555.0,59554.0,1.09921798]
[1617330539273,0.59776906,59555.0,59554.0,0.94221798]
[1617330539469,0.57876906,59555.0,59554.0,0.94221798]
[1617330539671,0.57876906,59555.0,59554.0,1.03573077]
[1617330539871,0.58476906,59555.0,59554.0,0.99073077]
[1617330540270,0.58476906,59555.0,59554.0,1.03073077]
[1617330540468,0.58476906,59555.0,59554.0,0.99073077]
[1617330540669,0.58476906,59555.0,59554.0,0.89721798]
[1617330541071,0.58476906,59555.0,59554.0,1.37021798]
[1617330541271,0.58476906,59555.0,59554.0,0.89021798]
[1617330541470,0.58476906,59555.0,59554.0,0.93021798]
[1617330542301,0.57976906,59555.0,59554.0,1.6200112]
[1617330542500,0.57976906,59555.0,59554.0,0.6000112]
[1617330542700,0.57976906,59555.0,59554.0,0.448171]
[1617330543100,0.57976906,59555.0,59554.0,1.13218096]
[1617330543300,0.58076906,59555.0,59554.0,1.13289706]
[1617330543502,0.58076906,59555.0,59554.0,1.17640985]
[1617330544099,0.58076906,59555.0,59554.0,1.90640985]
[1617330544303,0.58076906,59555.0,59554.0,2.38547985]
[1617330544521,0.58076906,59555.0,59554.0,1.65547985]
[1617330544720,0.58076906,59555.0,59554.0,1.65047985]
[1617330545321,0.56876906,59555.0,59554.0,1.17140985]
[1617330545522,0.56876906,59555.0,59554.0,2.11140985]
[1617330545721,0.56876906,59555.0,59554.0,1.17140985]
[1617330545921,0.57476906,59555.0,59554.0,1.17140985]
[1617330546123,0.57476906,59555.0,59554.0,1.16640985]
[1617330546525,0.56876906,59555.0,59554.0,0.75640985]
[1617330547151,0.56876906,59555.0,59554.0,0.74140985]
[1617330547352,0.56876906,59555.0,59554.0,0.46748379]
[1617330547551,0.56876906,59555.0,59554.0,0.426165]
[1617330547751,0.56876906,59555.0,59554.0,0.041]
[1617330548150,0.56876906,59555.0,59554.0,0.426165]
[1617330548350,0.57576906,59555.0,59554.0,0.426165]
[1617330548754,0.57576906,59555.0,59554.0,0.001]
[1617330549351,0.57576906,59555.0,59554.0,0.47651478]
[1617330549771,0.62601502,59555.0,59554.0,0.47151478]
[1617330549972,0.62601502,59555.0,59553.0,2.0945]
[1617330550173,0.56876906,59555.0,59554.0,1.55067978]
[1617330550376,0.56876906,59555.0,59554.0,1.60067978]
[1617330550650,0.56876906,59555.0,59554.0,0.86816544]
[1617330550851,0.57676906,59555.0,59554.0,0.39265066]
[1617330551053,0.57676906,59555.0,59554.0,0.00748566]
[1617330551651,0.56876906,59555.0,59554.0,0.39265066]
[1617330552051,0.57676906,59555.0,59554.0,0.39265066]
[1617330552253,0.57676906,59555.0,59554.0,0.38765066]
[1617330552650,0.57676906,59555.0,59554.0,0.00248566]
[1617330552852,0.56876906,59555.0,59554.0,0.00248566]
[1617330553251,0.57576906,59555.0,59554.0,0.38765066]
[1617330554052,0.57576906,59555.0,59553.0,0.08748566]
[1617330554454,0.57576906,59555.0,59554.0,0.385165]
[1617330555070,0.63239195,59586.0,59554.0,0.380165]
[1617330555267,2.801,59622.0,59562.0,0.004]
[1617330555268,0.15,59575.0,59562.0,0.004]
[1617330555466,1.062345,59574.0,59561.0,0.0088]
[1617330555667,0.33,59572.0,59561.0,0.0088]
[1617330555866,1.314461,59571.0,59562.0,0.00303724]
[1617330556066,1.0,59570.0,59561.0,0.0088]
[1617330556265,0.062345,59569.0,59561.0,0.0088]
[1617330556466,1.155,59568.0,59558.0,0.0012]
[1617330556667,0.155,59568.0,59559.0,0.00303724]
[1617330556867,0.84,59577.0,59565.0,0.25209]
[1617330557067,1.0,59576.0,59566.0,0.04]
[1617330557267,0.062345,59572.0,59568.0,0.0012]
[1617330557469,1.172345,59569.0,59568.0,0.0012]
[1617330557700,0.062345,59569.0,59565.0,0.25209]
[1617330557900,0.84,59577.0,59565.0,0.23709]
[1617330557901,1.0,59576.0,59565.0,0.23709]
[1617330558100,0.28,59575.0,59568.0,0.126031]
[1617330558300,0.28,59575.0,59569.0,0.06721645]
[1617330558301,1.0,59574.0,59569.0,0.06721645]
[1617330558500,1.282,59575.0,59569.0,0.06721645]
[1617330558700,1.002,59574.0,59569.0,0.06721645]
[1617330558898,0.19,59573.0,59569.0,0.04221645]
[1617330559099,1.0,59573.0,59568.0,0.10324745]
[1617330559298,1.0,59577.0,59568.0,0.10324745]
[1617330559500,1.157,59577.0,59568.0,0.10324745]
[1617330559698,1.0,59576.0,59568.0,0.10324745]
[1617330559899,1.002,59576.0,59568.0,0.10324745]
[1617330560102,1.33,59575.0,59568.0,0.10324745]
[1617330560322,1.345,59574.0,59568.0,0.10324745]
[1617330560522,1.002,59574.0,59568.0,0.10324745]
[1617330560725,1.0,59573.0,59568.0,0.10324745]
[1617330561125,1.0,59573.0,59568.0,0.09824745]
[1617330561327,0.15,59572.0,59567.0,0.1]
[1617330561527,0.99,59571.0,59567.0,0.1]
[1617330561726,0.15,59572.0,59567.0,0.1]
[1617330561926,0.0004,59592.0,59567.0,0.1]
[1617330562129,0.69,59587.0,59568.0,1.35]
[1617330562330,0.33811,59584.0,59574.0,0.006]
[1617330562528,0.79,59583.0,59570.0,0.004]
[1617330562729,0.792,59583.0,59570.0,0.004]
[1617330562952,1.179,59582.0,59570.0,0.004]
[1617330563154,0.789,59581.0,59570.0,0.004]
[1617330563351,0.791,59581.0,59570.0,0.004]
[1617330563553,2.095,59579.0,59569.0,0.004]
[1617330563752,2.095,59579.0,59567.0,0.099]
[1617330563753,2.884,59578.0,59567.0,0.004]
[1617330563951,0.784,59577.0,59567.0,0.004]
[1617330564151,0.786,59577.0,59567.0,0.004]
[1617330564352,0.784,59576.0,59567.0,0.004]
[1617330564552,0.786,59576.0,59567.0,0.004]
[1617330564755,0.784,59575.0,59567.0,0.004]
[1617330564953,0.786,59575.0,59567.0,0.004]
[1617330565152,0.784,59574.0,59567.0,0.004]
[1617330565355,0.79,59574.0,59564.0,0.53707524]
[1617330565566,0.784,59573.0,59564.0,0.53707524]
[1617330566185,0.781,59573.0,59564.0,0.53707524]
[1617330566383,0.01632947,59572.0,59564.0,0.53707524]
[1617330566983,0.781,59577.0,59564.0,0.53707524]
[1617330567182,0.21,59576.0,59564.0,0.53707524]
[1617330567386,0.0022,59580.0,59564.0,0.53707524]
[1617330567387,0.16,59585.0,59564.0,0.53707524]
[1617330567584,0.002,59575.0,59565.0,0.39454506]
[1617330567984,0.002,59575.0,59565.0,0.00303724]
[1617330568397,0.002,59575.0,59574.0,0.161]
[1617330568602,0.002,59575.0,59569.0,0.4595525]
[1617330568998,0.002,59575.0,59566.0,0.004]
[1617330569199,0.002,59575.0,59567.0,0.00303724]
[1617330569398,0.002,59575.0,59567.0,0.25510424]
[1617330569597,0.002,59575.0,59567.0,0.252067]
[1617330569998,0.002,59575.0,59567.0,0.237207]
[1617330570197,0.219067,59583.0,59568.0,2.1]
[1617330570398,0.219067,59583.0,59569.0,0.39454506]
[1617330570604,0.271067,59583.0,59568.0,0.00303724]
[1617330571028,0.252066,59581.0,59568.0,0.00303724]
[1617330571228,0.002,59581.0,59568.0,0.00303724]
[1617330571632,0.42192,59581.0,59565.0,0.00303724]
[1617330571831,0.16,59580.0,59564.0,0.10303724]
[1617330572028,0.318,59580.0,59564.0,0.10303724]
[1617330572229,0.15,59579.0,59564.0,0.09557286]
[1617330572431,0.252143,59573.0,59564.0,0.09253562]
[1617330572631,0.5,59572.0,59564.0,0.09253562]
[1617330572830,0.17,59571.0,59564.0,0.09253562]
[1617330573457,0.252141,59568.0,59565.0,1.55]
[1617330573657,0.38299,59571.0,59564.0,0.5468159]
[1617330574454,0.38299,59571.0,59564.0,0.5418159]
[1617330574656,0.25214,59568.0,59564.0,0.08753562]
[1617330575053,0.25214,59568.0,59564.0,0.08253562]
[1617330575655,0.25214,59568.0,59564.0,0.06753562]
[1617330576072,0.25214,59568.0,59564.0,0.06253562]
[1617330576473,0.195,59567.0,59564.0,0.06253562]
[1617330576672,0.195,59567.0,59564.0,0.05753562]
[1617330576872,0.195,59567.0,59564.0,0.05253562]
[1617330577476,0.252169,59566.0,59564.0,0.05253562]
[1617330577677,1.597,59565.0,59564.0,0.05253562]
[1617330577875,1.467,59565.0,59564.0,0.03253562]
[1617330578074,0.987,59565.0,59564.0,0.03253562]
[1617330578483,2.1,59564.0,59542.0,0.15]
[1617330578700,2.38,59564.0,59546.0,0.15]
[1617330578901,0.33,59564.0,59546.0,0.15]
[1617330579103,0.6,59559.0,59554.0,0.1477]
[1617330579702,0.99962764,59559.0,59554.0,0.1477]
[1617330579901,0.185,59558.0,59554.0,0.1477]
[1617330580102,0.252206,59556.0,59554.0,0.1477]
[1617330580302,0.580196,59556.0,59554.0,0.1477]
[1617330580505,2.1,59554.0,59550.0,1.3507]
[1617330580743,2.1,59553.0,59545.0,0.1019]
[1617330580942,2.4657633,59553.0,59545.0,0.1019]
[1617330581143,2.4657633,59553.0,59541.0,1.7424]
[1617330581144,2.1,59552.0,59541.0,1.7424]
[1617330581339,3.315,59552.0,59541.0,0.7429]
[1617330581541,0.252273,59547.0,59541.0,0.7329]
[1617330581739,0.6,59547.0,59539.0,0.0333]
[1617330581939,3.06093896,59546.0,59539.0,0.0333]
[1617330582142,0.39593896,59545.0,59539.0,0.0283]
[1617330582341,2.80767084,59545.0,59532.0,0.1237]
[1617330582543,0.715,59543.0,59532.0,0.0987]
[1617330582744,0.252325,59539.0,59522.0,0.15]
[1617330582943,2.1,59537.0,59525.0,0.145]
[1617330583147,2.15,59537.0,59525.0,0.145]
[1617330583540,0.6,59535.0,59525.0,0.145]
[1617330583744,0.47,59534.0,59525.0,0.145]
[1617330583967,0.696601,59531.0,59525.0,0.145]
[1617330584167,0.008,59530.0,59525.0,0.145]
[1617330584374,0.30195082,59530.0,59525.0,0.0001]
[1617330584570,0.6,59528.0,59525.0,0.0001]
[1617330584769,0.008,59527.0,59524.0,0.1451]
[1617330584970,0.25,59526.0,59524.0,0.1451]
[1617330585368,0.008,59525.0,59524.0,0.1451]
[1617330585570,0.008,59525.0,59524.0,0.1401]
[1617330585773,1.388,59525.0,59524.0,0.1351]
[1617330585973,1.56,59523.0,59519.0,0.15]
[1617330586173,0.33105,59525.0,59516.0,0.15]
[1617330586174,1.98,59522.0,59516.0,0.0299]
[1617330586377,2.58,59522.0,59516.0,0.0299]
[1617330586578,0.008,59521.0,59516.0,0.0027318]
[1617330586780,0.48,59520.0,59515.0,0.1477318]
[1617330586978,0.6,59522.0,59515.0,0.1477318]
[1617330587181,0.04834,59521.0,59513.0,0.15]
[1617330587378,0.04834,59521.0,59511.0,0.1654]
[1617330587379,0.252351,59519.0,59511.0,0.1654]
[1617330587576,0.565,59518.0,59511.0,0.1654]
[1617330587778,0.6,59515.0,59511.0,0.1604]
[1617330587978,0.6,59515.0,59511.0,0.1454]
[1617330588178,0.18,59514.0,59511.0,0.1404]
[1617330588377,0.008,59513.0,59511.0,0.1404]
[1617330588576,0.008,59513.0,59511.0,0.1304]
[1617330588981,0.008,59514.0,59511.0,0.1304]
[1617330589204,0.6,59515.0,59511.0,0.1304]
[1617330589605,0.6,59515.0,59511.0,0.1254]
[1617330590004,0.6,59515.0,59511.0,0.1104]
[1617330590206,0.008,59514.0,59511.0,0.1054]
[1617330590809,0.252372,59513.0,59511.0,0.1054]
[1617330591210,0.6,59515.0,59511.0,0.1054]
[1617330592226,0.66648444,59514.0,59511.0,0.1054]
[1617330592427,0.185,59513.0,59511.0,0.1054]
[1617330593827,0.185,59513.0,59510.0,0.0558]
[1617330594651,0.215,59512.0,59509.0,0.0004]
[1617330595454,0.215,59512.0,59507.0,0.24819498]
[1617330595652,0.215,59512.0,59511.0,0.163]
[1617330596464,0.215,59512.0,59511.0,0.252288]
[1617330596675,0.215,59512.0,59510.0,0.20568]
[1617330596867,0.215,59512.0,59509.0,0.126151]
[1617330597102,0.22,59511.0,59506.0,0.0004]
[1617330597687,0.6,59509.0,59500.0,0.2473082]
[1617330597889,0.22,59508.0,59500.0,0.2423082]
[1617330598088,0.6,59509.0,59500.0,0.2423082]
[1617330598288,0.66648444,59514.0,59500.0,0.2423082]
[1617330598488,0.6,59507.0,59501.0,1.0]
[1617330598693,0.6,59507.0,59506.0,2.261]
[1617330598888,0.66648444,59514.0,59506.0,2.78608]
[1617330599088,0.66648444,59514.0,59507.0,0.52073099]
[1617330599290,0.66648444,59514.0,59507.0,0.38508]
[1617330599291,0.008,59513.0,59507.0,0.38508]
[1617330599492,0.008,59513.0,59502.0,0.22228368]
[1617330599700,0.008,59513.0,59503.0,0.37811724]
[1617330599900,0.008,59513.0,59503.0,0.37508]
[1617330600103,0.6,59508.0,59503.0,0.37508]
[1617330600301,0.6,59508.0,59502.0,0.06728368]
[1617330600501,0.6,59508.0,59502.0,1.06728368]
[1617330600701,0.6,59508.0,59503.0,0.805474]
[1617330600903,0.6,59508.0,59507.0,2.256]
[1617330601100,0.607,59508.0,59507.0,2.731474]
[1617330601302,0.607,59508.0,59507.0,2.681474]
[1617330601501,0.007,59508.0,59507.0,2.681474]
[1617330601703,0.66648444,59514.0,59507.0,4.148767]
[1617330601904,0.66648444,59514.0,59513.0,2.259]
[1617330602108,0.66648444,59514.0,59513.0,4.184474]
[1617330602335,0.66648444,59514.0,59513.0,4.519474]
[1617330602731,1.61e-06,59514.0,59513.0,4.519474]
[1617330602933,0.0002,59530.0,59529.0,2.261]
[1617330603136,0.0002,59530.0,59529.0,4.515584]
[1617330603535,0.1676,59554.0,59531.0,0.39454506]
[1617330603733,0.1676,59554.0,59553.0,2.02799917]
[1617330603933,0.1676,59554.0,59553.0,2.34801917]
[1617330604132,0.1717,59555.0,59553.0,3.21329317]
[1617330604334,0.00025171,59565.0,59562.0,0.16]
[1617330604533,0.00025171,59565.0,59563.0,0.24672712]
[1617330604735,0.08,59563.0,59562.0,0.16]
[1617330604954,0.08,59563.0,59562.0,0.40672712]
[1617330605152,0.08,59563.0,59562.0,0.79220112]
[1617330605356,0.08,59563.0,59562.0,0.99720112]
[1617330605555,0.08,59563.0,59562.0,1.002537]
[1617330606156,0.08,59563.0,59562.0,1.052537]
[1617330606357,0.08,59563.0,59562.0,2.572537]
[1617330606759,0.08,59563.0,59562.0,1.002537]
[1617330607157,0.99725171,59583.0,59580.0,0.161]
[1617330607362,0.009937,59581.0,59579.0,0.59791]
[1617330607580,0.15340988,59580.0,59579.0,1.34018407]
[1617330607779,0.14347288,59580.0,59579.0,1.34018407]
[1617330607978,0.14547288,59580.0,59579.0,1.57018407]
[1617330608180,0.002,59580.0,59579.0,1.39843]
[1617330608378,0.002,59580.0,59579.0,3.883904]
[1617330608583,0.002,59580.0,59579.0,7.48832318]
[1617330608981,0.002,59580.0,59579.0,7.48332318]
[1617330609381,0.98025171,59583.0,59580.0,1.76]
[1617330609580,0.98025171,59583.0,59582.0,2.42481372]
[1617330609778,0.98225171,59583.0,59582.0,7.30621472]
[1617330609981,0.98225171,59583.0,59582.0,7.9147069]
[1617330610221,0.98225171,59583.0,59582.0,8.00821969]
[1617330610422,0.00325171,59589.0,59583.0,1.76]
[1617330610624,0.00325171,59589.0,59584.0,2.04302668]
[1617330610912,0.00525171,59589.0,59585.0,4.545927]
[1617330611109,5.171e-05,59591.0,59586.0,4.421401]
[1617330611310,0.1468,59593.0,59586.0,4.421401]
[1617330611311,0.1761,59594.0,59588.0,3.88970782]
[1617330611510,0.1761,59594.0,59589.0,1.435474]
[1617330611511,0.1781,59594.0,59589.0,1.435474]
[1617330611714,0.002,59594.0,59593.0,2.255]
[1617330611911,0.0006,59601.0,59594.0,2.15150782]
[1617330612115,0.0006,59601.0,59599.0,2.257]
[1617330612319,2.900257,59600.0,59599.0,6.84141918]
[1617330612516,2.900257,59600.0,59599.0,5.74141918]
[1617330612517,2.5322,59600.0,59599.0,5.74141918]
[1617330612719,0.0002,59607.0,59599.0,6.76689318]
[1617330612939,0.03931218,59617.0,59616.0,1.0]
[1617330613137,14.55982517,59618.0,59616.0,2.56083713]
[1617330613343,14.32562517,59618.0,59617.0,6.7387713]
[1617330613535,13.29291934,59618.0,59617.0,11.06310352]
[1617330613736,13.05491934,59618.0,59617.0,7.7038203]
[1617330613934,12.65911934,59618.0,59617.0,6.61561303]
[1617330614135,12.18432732,59618.0,59617.0,10.28983309]
[1617330614337,12.17452732,59618.0,59617.0,11.43996225]
[1617330614540,11.18902732,59618.0,59617.0,11.43257205]
[1617330614738,9.28434281,59618.0,59617.0,11.43257205]
[1617330614939,9.23894281,59618.0,59617.0,11.43237205]
[1617330615141,7.80094281,59618.0,59617.0,10.68237205]
[1617330615339,7.80094281,59618.0,59617.0,10.41562693]
[1617330615340,5.2137502,59618.0,59617.0,10.41562693]
[1617330615563,5.2137502,59618.0,59617.0,5.9561825]
[1617330615761,5.2137502,59618.0,59617.0,3.32753788]
[1617330615961,5.2137502,59618.0,59617.0,2.32753788]
[1617330616160,5.2137502,59618.0,59617.0,2.92753788]
[1617330616161,5.18732059,59618.0,59617.0,2.92753788]
[1617330616359,5.18732059,59618.0,59617.0,2.81665769]
[1617330616558,5.18732059,59618.0,59617.0,2.81645769]
[1617330616959,5.18732059,59618.0,59617.0,2.77645769]
[1617330617161,5.02261899,59618.0,59617.0,3.67935769]
[1617330617360,5.02261899,59618.0,59617.0,6.86475769]
[1617330617559,5.02261899,59618.0,59617.0,7.00904873]
[1617330617763,4.82655437,59618.0,59617.0,6.45631869]
[1617330617961,4.82655437,59618.0,59617.0,6.69611869]
[1617330618186,4.82515437,59618.0,59617.0,6.69611869]
[1617330618388,2.51832557,59618.0,59617.0,7.99611869]
[1617330618586,2.51752557,59618.0,59617.0,8.31853355]
[1617330618785,2.51552557,59618.0,59617.0,8.31853355]
[1617330618987,0.38950009,59628.0,59618.0,2.27933673]
[1617330619188,0.38950009,59628.0,59627.0,2.54246167]
[1617330619387,0.05940009,59628.0,59627.0,3.50575646]
[1617330619585,0.05940009,59628.0,59627.0,3.55075646]
[1617330619786,2.97873253,59657.0,59628.0,0.64]
[1617330619988,2.97873253,59657.0,59629.0,1.40887522]
[1617330620189,2.97873253,59657.0,59630.0,0.54935637]
[1617330620394,2.97873253,59657.0,59638.0,0.7435]
[1617330620395,0.65848255,59645.0,59638.0,0.7435]
[1617330620589,0.66048255,59645.0,59639.0,1.86357508]
[1617330620805,0.63048255,59645.0,59643.0,0.874702]
[1617330621006,0.63048255,59645.0,59644.0,2.44314602]
[1617330621206,0.002,59645.0,59644.0,4.43365384]
[1617330621408,2.72701253,59657.0,59646.0,0.49]
[1617330621409,1.33987738,59650.0,59646.0,0.49]
[1617330621613,1.33987738,59650.0,59649.0,0.38466]
[1617330621614,1.30587838,59650.0,59649.0,0.38466]
[1617330621807,1.26134138,59650.0,59649.0,0.77616782]
[1617330622007,1.25634138,59650.0,59649.0,1.14817279]
[1617330622206,1.23972138,59650.0,59649.0,5.6203196]
[1617330622406,2.72701253,59657.0,59649.0,6.3503196]
[1617330622611,1.99925653,59657.0,59651.0,0.49]
[1617330622809,1.99925653,59657.0,59655.0,1.788059]
[1617330623013,1.05675653,59657.0,59656.0,3.69315237]
[1617330623211,0.0008,59658.0,59656.0,5.29315237]
[1617330623437,0.0354,59660.0,59659.0,0.85]
[1617330623632,0.0354,59660.0,59659.0,3.08625482]
[1617330623633,0.0284,59660.0,59659.0,3.08625482]
[1617330623834,0.05025199,59663.0,59660.0,0.43]
[1617330624035,0.05025199,59663.0,59662.0,1.53707682]
[1617330624036,0.04905199,59663.0,59662.0,1.53707682]
[1617330624233,0.04825199,59663.0,59662.0,2.53707682]
[1617330624434,0.36425199,59666.0,59663.0,0.85]
[1617330624633,0.36285199,59666.0,59665.0,0.69622182]
[1617330624834,0.35945199,59666.0,59665.0,3.20922182]
[1617330625034,0.29045199,59666.0,59665.0,3.30955244]
[1617330625236,0.0156,59674.0,59665.0,3.24504462]
[1617330625435,0.0156,59674.0,59665.0,3.49233062]
[1617330625636,0.0156,59674.0,59665.0,1.64033062]
[1617330625860,0.0156,59674.0,59665.0,1.59033062]
[1617330626090,0.0156,59674.0,59665.0,0.59033062]
[1617330626271,1.90295679,59668.0,59665.0,0.59033062]
[1617330626469,1.90295679,59668.0,59665.0,0.69033062]
[1617330627672,1.90295679,59668.0,59665.0,0.54339562]
[1617330627877,1.90295679,59668.0,59665.0,0.66884562]
[1617330628072,1.90295679,59668.0,59665.0,0.16884562]
[1617330628273,1.90295679,59668.0,59665.0,0.17996543]
[1617330628474,1.90295679,59668.0,59665.0,0.17496543]
[1617330629481,1.90295679,59668.0,59665.0,0.22496543]
[1617330629682,1.90295679,59668.0,59665.0,1.08778543]
[1617330630082,1.51996829,59668.0,59666.0,0.2]
[1617330630282,1.51996829,59668.0,59665.0,0.62496543]
[1617330630482,1.51996829,59668.0,59665.0,0.16884562]
[1617330631082,1.51996829,59668.0,59665.0,0.16384562]
[1617330631312,1.50996829,59668.0,59665.0,0.15884562]
[1617330631512,0.41,59667.0,59665.0,0.15884562]
[1617330631713,1.50996829,59668.0,59665.0,0.15884562]
[1617330631911,1.50996829,59668.0,59665.0,0.08831358]
[1617330632511,1.50996829,59668.0,59665.0,0.08551358]
[1617330632713,0.00026316,59667.0,59665.0,0.08551358]
[1617330632911,0.00026316,59667.0,59665.0,0.68867942]
[1617330633113,0.00026316,59667.0,59665.0,0.79207942]
[1617330633310,0.00026316,59667.0,59665.0,0.91151942]
[1617330633935,0.00026316,59667.0,59665.0,0.90651942]
[1617330634141,0.00026316,59667.0,59666.0,0.00889557]
[1617330634738,0.00026316,59667.0,59666.0,0.11206141]
[1617330634938,1.40313145,59668.0,59666.0,0.11206141]
[1617330635136,1.40313145,59668.0,59666.0,0.09456587]
[1617330635335,0.0180892,59669.0,59666.0,0.34456587]
[1617330635539,0.0180892,59669.0,59667.0,2.07]
[1617330635737,1.84454303,59670.0,59669.0,0.3]
[1617330635937,0.00154478,59671.0,59669.0,2.35040546]
[1617330636142,0.0004,59672.0,59669.0,2.91540546]
[1617330636336,0.0002,59672.0,59669.0,2.95997133]
[1617330636563,0.00046,59673.0,59670.0,0.29]
[1617330636761,0.00046,59673.0,59672.0,1.31]
[1617330636964,0.00046,59673.0,59672.0,2.09]
[1617330637160,0.00046,59673.0,59672.0,4.06820727]
[1617330637359,0.01106,59674.0,59672.0,4.36277314]
[1617330637560,0.01106,59674.0,59672.0,3.82277314]
[1617330637762,0.01106,59674.0,59673.0,1.68820727]
[1617330638161,0.01106,59674.0,59673.0,1.74514054]
[1617330638361,0.01106,59674.0,59673.0,1.74014054]
[1617330638563,0.17206,59674.0,59673.0,1.69557467]
[1617330638770,3.338691,59674.0,59673.0,0.0173674]
[1617330638966,3.723303,59674.0,59673.0,0.0173674]
[1617330639184,1.251243,59674.0,59671.0,0.13956587]
[1617330639385,1.384612,59673.0,59671.0,0.13956587]
[1617330639583,1.384612,59673.0,59672.0,0.1]
[1617330639787,1.384612,59673.0,59667.0,0.0173674]
[1617330639788,1.502912,59673.0,59667.0,0.0173674]
[1617330639988,0.745,59668.0,59665.0,0.12855]
[1617330640187,0.745,59668.0,59663.0,2.9948]
[1617330640188,0.384611,59666.0,59663.0,2.9948]
[1617330640385,2.482,59664.0,59663.0,2.659126]
[1617330640589,0.384614,59664.0,59663.0,0.3119401]
[1617330640877,0.251796,59654.0,59645.0,0.205]
[1617330641280,0.389357,59655.0,59640.0,1.426]
[1617330641281,0.815814,59650.0,59640.0,1.426]
[1617330641478,0.4312,59650.0,59640.0,1.426]
[1617330641680,2.491,59641.0,59640.0,1.426]
[1617330641903,2.491,59641.0,59630.0,0.0173674]